fUST/lending_fUST_20240111
["ID","MTS","AMOUNT","RATE_DAILY","PERIOD"]
[311170482,1704961845613,-500.0,0.0003041,2]
[311170483,1704961845623,-500.0,0.0003041,2]
[311170484,1704961845632,-500.0,0.0003041,2]
[311170485,1704961845641,-500.0,0.0003041,2]
[311170486,1704961845650,-258.27903606,0.0003041,2]
[311170488,1704961845659,-3493.58,0.0003041,2]
[311170489,1704961845668,-175.33938275,0.0003041,2]
[311170490,1704961845678,-311.39649081,0.0003041,2]
[311170491,1704961845687,-500.0,0.0003041,2]
[311170492,1704961845697,-500.0,0.0003041,2]
[311170493,1704961845706,-735.22,0.0003041,2]
[311170494,1704961845716,-500.0,0.0003041,2]
[311170495,1704961845805,-500.0,0.0003041,2]
[311170496,1704961845814,-500.0,0.0003041,2]
[311170497,1704961845823,-1088.35,0.0003041,2]
[311170498,1704961845832,-501.19999599,0.0003041,2]
[311170500,1704961845841,-500.0,0.0003041,2]
[311170502,1704961845850,-500.0,0.0003041,2]
[311170504,1704961845859,-500.0,0.0003041,2]
[311170505,1704961845868,-502.07502947,0.0003041,2]
[311170507,1704961845878,-500.0,0.0003041,2]
[311170509,1704961845887,-6233.73,0.0003041,2]
[311170511,1704961845896,-500.0,0.0003041,2]
[311170512,1704961845905,-522.18,0.0003041,2]
[311170513,1704961845914,-500.0,0.0003041,2]
[311170515,1704961845924,-6525.09,0.0003041,2]
[311170517,1704961845933,-500.0,0.0003041,2]
[311170518,1704961845942,-576.25083322,0.0003041,2]
[311170519,1704961845952,-257.42195307,0.0003041,2]
[311170520,1704961845961,-500.0,0.0003041,2]
[311170521,1704961845970,-500.0,0.0003041,2]
[311170522,1704961845979,-557.70085945,0.0003041,2]
[311170523,1704961845988,-1358.57,0.0003041,2]
[311170525,1704961845997,-2550.85,0.0003041,2]
[311170527,1704961846008,-3580.01,0.0003041,2]
[311170529,1704961846017,-500.0,0.0003041,2]
[311170530,1704961846026,-500.0,0.0003041,2]
[311170531,1704961846035,-500.0,0.0003041,2]
[311170532,1704961846046,-500.0,0.0003041,2]
[311170534,1704961846056,-588.93005954,0.0003041,2]
[311170535,1704961846065,-1742.05,0.0003041,2]
[311170536,1704961846074,-500.0,0.0003041,2]
[311170537,1704961846083,-500.0,0.0003041,2]
[311170538,1704961846093,-500.0,0.0003041,2]
[311170539,1704961846102,-631.94,0.0003041,2]
[311170540,1704961846111,-301.39905633,0.0003041,2]
[311170541,1704961846121,-500.0,0.0003041,2]
[311170542,1704961846130,-500.0,0.0003041,2]
[311170543,1704961846138,-500.0,0.0003041,2]
[311170544,1704961846148,-534.59720715,0.0003041,2]
[311170545,1704961846157,-528.95650018,0.0003041,2]
[311170546,1704961846166,-500.0,0.0003041,2]
[311170547,1704961846175,-503.03106236,0.0003041,2]
[311170548,1704961846185,-500.0,0.0003041,2]
[311170549,1704961846194,-500.0,0.0003041,2]
[311170550,1704961846203,-735.69,0.0003041,2]
[311170551,1704961846213,-10447.61,0.0003041,2]
[311170552,1704961846222,-500.0,0.0003041,2]
[311170553,1704961846231,-500.0,0.0003041,2]
[311170554,1704961846240,-748.45,0.0003041,2]
[311170555,1704961846249,-500.0,0.0003041,2]
[311170556,1704961846259,-1077.88,0.0003041,2]
[311170557,1704961846268,-509.38199583,0.0003041,2]
[311170558,1704961846278,-500.0,0.0003041,2]
[311170559,1704961846287,-500.0,0.0003041,2]
[311170560,1704961846296,-1097.4,0.0003041,2]
[311170561,1704961846305,-500.0,0.0003041,2]
[311170562,1704961846314,-614.64769916,0.0003041,2]
[311170563,1704961846323,-500.0,0.0003041,2]
[311170564,1704961846333,-865.33,0.0003041,2]
[311170565,1704961846342,-500.0,0.0003041,2]
[311170566,1704961846352,-500.0,0.0003041,2]
[311170567,1704961846361,-2170.83,0.0003041,2]
[311170568,1704961846370,-500.0,0.0003041,2]
[311170569,1704961846380,-500.0,0.0003041,2]
[311170570,1704961846389,-1000.0,0.0003041,2]
[311170571,1704961846398,-500.0,0.0003041,2]
[311170572,1704961846409,-500.0,0.0003041,2]
[311170573,1704961846418,-500.0,0.0003041,2]
[311170574,1704961846427,-793.97,0.0003041,2]
[311170575,1704961846437,-500.0,0.0003041,2]
[311170576,1704961846446,-509.73800057,0.0003041,2]
[311170577,1704961846455,-500.0,0.0003041,2]
[311170579,1704961846464,-177.50791319,0.0003041,2]
[311170581,1704961846474,-500.0,0.0003041,2]
[311170582,1704961846483,-502.28052706,0.0003041,2]
[311170584,1704961846493,-500.0,0.0003041,2]
[311170585,1704961846502,-948.2,0.0003041,2]
[311170586,1704961846511,-500.0,0.0003041,2]
[311170587,1704961846520,-1085.34,0.0003041,2]
[311170588,1704961846530,-500.0,0.0003041,2]
[311170589,1704961846539,-159.91775899,0.0003041,5]
[311170590,1704961846549,-500.0,0.0003041,2]
[311170591,1704961846559,-500.0,0.0003041,2]
[311170592,1704961846568,-500.0,0.0003041,2]
[311170593,1704961846578,-500.0,0.0003041,2]
[311170594,1704961846588,-500.0,0.0003041,2]
[311170595,1704961846598,-513.17611346,0.0003041,2]
[311170596,1704961846607,-647.23326909,0.0003041,2]
[311170597,1704961846616,-500.0,0.0003041,2]
[311170598,1704961846625,-500.0,0.0003041,2]
[311170599,1704961846634,-2087.46,0.0003041,2]
[311170600,1704961846644,-493.23250154,0.0003041,2]
[311170601,1704961846654,-501.73358744,0.0003041,2]
[311170602,1704961846664,-500.0,0.0003041,2]
[311170603,1704961846674,-500.0,0.0003041,2]
[311170604,1704961846685,-1155.181581,0.00030459,2]
[311170605,1704961846696,-1155.181581,0.00030459,2]
[311170606,1704961846706,-192.014833,0.00030459,2]
[311170607,1704961846716,-192.014833,0.00030459,2]
[311170608,1704961846727,-5518.496776,0.00030459,2]
[311170609,1704961846737,-5518.496776,0.00030459,2]
[311170610,1704961846748,-63679.59545859,0.00030459,7]
[311170611,1704961846758,-620.00063867,0.00030485,2]
[311170612,1704961846769,-161.39102364,0.00030499,10]
[311170613,1704961846780,-182.389996,0.000305,2]
[311170614,1704961846791,-158.272084,0.000305,2]
[311170615,1704961846801,-189.542468,0.000305,2]
[311170616,1704961846810,-403381.29298095,0.000305,3]
[311170617,1704961846938,-10202.84952288,0.000305,3]
[311170618,1704961846951,-36424.85749617,0.000305,3]
[311170619,1704961846962,-1155.181581,0.000305,2]
[311170620,1704961846972,-1155.181581,0.000305,2]
[311170621,1704961846981,-192.014833,0.000305,2]
[311170622,1704961846990,-192.014833,0.000305,2]
[311170623,1704961846999,-5518.496776,0.000305,2]
[311170624,1704961847008,-5518.496776,0.000305,2]
[311170625,1704961847018,-189.52504916,0.00030516,7]
[311170626,1704961847028,-620.01277337,0.00030561,2]
[311170627,1704961847037,-163.389155,0.00030594,2]
[311170628,1704961847046,-1500.0,0.000306,2]
[311170629,1704961847055,-538.369887,0.000306,3]
[311170630,1704961847065,-200.0,0.00030626,15]
[311170631,1704961847074,-5000.0,0.00030668,7]
[311170632,1704961847083,-798.76802739,0.00030681,4]
[311170633,1704961847092,-162.0403879,0.00030682,4]
[311170634,1704961847101,-500.0,0.00030684,2]
[311170635,1704961847110,-500.0,0.00030684,2]
[311170636,1704961847120,-500.0,0.00030684,2]
[311170637,1704961847129,-500.0,0.00030684,2]
[311170638,1704961847138,-510.53781387,0.00030684,2]
[311170639,1704961847147,-500.0,0.00030684,2]
[311170640,1704961847157,-500.0,0.00030684,2]
[311170641,1704961847166,-500.0,0.00030684,2]
[311170642,1704961847175,-500.0,0.00030684,2]
[311170643,1704961847188,-263.55370066,0.00030684,2]
[311170644,1704961847197,-500.0,0.00030684,2]
[311170645,1704961847205,-500.0,0.00030684,2]
[311170646,1704961847214,-500.0,0.00030684,2]
[311170647,1704961847223,-500.0,0.00030684,2]
[311170648,1704961847232,-500.0,0.00030684,2]
[311170649,1704961847242,-499.32168742,0.00030684,2]
[311170650,1704961847251,-500.0,0.00030684,2]
[311170651,1704961847260,-506.72182713,0.00030684,2]
[311170652,1704961847270,-500.0,0.00030684,2]
[311170653,1704961847279,-500.0,0.00030684,2]
[311170654,1704961847288,-500.0,0.00030684,2]
[311170655,1704961847297,-502.67753851,0.00030684,2]
[311170656,1704961847306,-500.0,0.00030684,2]
[311170657,1704961847315,-500.0,0.00030684,2]
[311170658,1704961847324,-500.0,0.00030684,2]
[311170659,1704961847334,-500.0,0.00030684,2]
[311170660,1704961847343,-500.0,0.00030684,2]
[311170661,1704961847352,-500.0,0.00030684,2]
[311170662,1704961847361,-500.0,0.00030684,2]
[311170663,1704961847372,-501.53777005,0.00030684,2]
[311170664,1704961847381,-500.0,0.00030684,2]
[311170665,1704961847390,-1215.22,0.00030684,2]
[311170666,1704961847399,-500.0,0.00030684,2]
[311170667,1704961847409,-500.0,0.00030684,2]
[311170668,1704961847418,-500.0,0.00030684,2]
[311170669,1704961847427,-500.0,0.00030684,2]
[311170670,1704961847438,-500.0,0.00030684,2]
[311170671,1704961847448,-860.89,0.00030684,2]
[311170672,1704961847457,-500.0,0.00030684,2]
[311170673,1704961847466,-500.0,0.00030684,2]
[311170674,1704961847474,-500.0,0.00030684,2]
[311170675,1704961847484,-503.768538,0.00030684,2]
[311170676,1704961847493,-500.0,0.00030684,2]
[311170677,1704961847502,-500.0,0.00030684,2]
[311170678,1704961847511,-500.0,0.00030684,2]
[311170679,1704961847520,-500.0,0.00030684,2]
[311170680,1704961847529,-218.364234,0.00030684,2]
[311170681,1704961847539,-500.0,0.00030684,2]
[311170682,1704961847548,-504.58329312,0.00030684,2]
[311170683,1704961847557,-500.0,0.00030684,2]
[311170684,1704961847566,-500.0,0.00030684,2]
[311170685,1704961847575,-500.0,0.00030684,2]
[311170686,1704961847584,-773.24,0.00030684,2]
[311170687,1704961847593,-500.0,0.00030684,2]
[311170688,1704961847602,-500.0,0.00030684,2]
[311170689,1704961847611,-500.0,0.00030684,2]
[311170690,1704961847620,-500.0,0.00030684,2]
[311170691,1704961847629,-521.24,0.00030684,2]
[311170692,1704961847638,-500.0,0.00030684,2]
[311170693,1704961847731,-150.0,0.00030684,2]
[311170694,1704961847741,-502.67434409,0.00030684,2]
[311170695,1704961847750,-500.0,0.00030684,2]
[311170696,1704961847759,-500.0,0.00030684,2]
[311170697,1704961847769,-1874.21,0.00030684,2]
[311170698,1704961847778,-445.60852312,0.00030684,2]
[311170699,1704961847788,-163.83594978,0.00030684,2]
[311170700,1704961847796,-625.13,0.00030684,2]
[311170701,1704961847806,-500.0,0.00030684,2]
[311170702,1704961847815,-556.52601552,0.00030684,2]
[311170703,1704961847824,-500.0,0.00030684,2]
[311170704,1704961847834,-500.0,0.00030684,2]
[311170705,1704961847844,-500.0,0.00030684,2]
[311170706,1704961847854,-500.0,0.00030684,2]
[311170707,1704961847863,-505.37757278,0.00030684,2]
[311170708,1704961847872,-500.0,0.00030684,2]
[311170709,1704961847882,-500.0,0.00030684,2]
[311170710,1704961847891,-500.0,0.00030684,2]
[311170711,1704961847900,-500.0,0.00030684,2]
[311170712,1704961847910,-500.0,0.00030684,2]
[311170713,1704961847919,-500.0,0.00030684,2]
[311170714,1704961847931,-590.53,0.00030684,2]
[311170715,1704961847940,-500.0,0.00030684,2]
[311170716,1704961847949,-502.99875543,0.00030684,2]
[311170717,1704961847958,-500.0,0.00030684,2]
[311170718,1704961847968,-500.0,0.00030684,2]
[311170719,1704961847977,-500.0,0.00030684,2]
[311170720,1704961847986,-500.0,0.00030684,2]
[311170721,1704961847997,-500.0,0.00030684,2]
[311170722,1704961848011,-500.0,0.00030684,2]
[311170723,1704961848020,-635.83645663,0.00030684,2]
[311170724,1704961848030,-503.38877477,0.00030684,2]
[311170725,1704961848040,-499.82950867,0.00030684,2]
[311170726,1704961848050,-500.0,0.00030684,2]
[311170727,1704961848059,-502.77795987,0.00030684,2]
[311170728,1704961848069,-500.0,0.00030684,2]
[311170729,1704961848079,-500.0,0.00030684,2]
[311170730,1704961848088,-500.0,0.00030684,2]
[311170731,1704961848098,-688.78,0.00030684,2]
[311170732,1704961848107,-500.0,0.00030684,2]
[311170733,1704961848116,-500.0,0.00030684,2]
[311170734,1704961848126,-500.0,0.00030684,2]
[311170735,1704961848135,-500.0,0.00030684,2]
[311170736,1704961848145,-500.0,0.00030684,2]
[311170737,1704961848155,-490.65448554,0.00030684,2]
[311170738,1704961848164,-500.0,0.00030684,2]
[311170739,1704961848175,-500.0,0.00030684,2]
[311170740,1704961848186,-262.2206742,0.00030684,2]
[311170741,1704961848196,-344.44482029,0.00030684,2]
[311170742,1704961848205,-500.0,0.00030684,2]
[311170743,1704961848214,-500.0,0.00030684,2]
[311170744,1704961848223,-823.01,0.00030684,2]
[311170745,1704961848232,-500.0,0.00030684,2]
[311170746,1704961848242,-500.0,0.00030684,2]
[311170747,1704961848251,-500.0,0.00030684,2]
[311170748,1704961848260,-500.0,0.00030684,2]
[311170749,1704961848271,-500.0,0.00030684,2]
[311170750,1704961848280,-506.28699417,0.00030684,2]
[311170751,1704961848289,-500.0,0.00030684,2]
[311170752,1704961848298,-623.42,0.00030684,2]
[311170753,1704961848307,-500.0,0.00030684,2]
[311170754,1704961848316,-493.32760394,0.00030684,2]
[311170755,1704961848325,-500.0,0.00030684,2]
[311170756,1704961848335,-500.0,0.00030684,2]
[311170757,1704961848345,-545.28763592,0.00030684,2]
[311170758,1704961848354,-500.0,0.00030684,2]
[311170759,1704961848363,-500.0,0.00030684,2]
[311170760,1704961848372,-3493.58,0.00030684,2]
[311170761,1704961848381,-500.0,0.00030684,2]
[311170762,1704961848391,-735.22,0.00030684,2]
[311170763,1704961848400,-504.47013511,0.00030684,2]
[311170764,1704961848409,-500.0,0.00030684,2]
[311170765,1704961848418,-500.0,0.00030684,2]
[311170766,1704961848427,-1088.35,0.00030684,2]
[311170767,1704961848438,-500.0,0.00030684,2]
[311170768,1704961848448,-500.0,0.00030684,2]
[311170769,1704961848458,-500.0,0.00030684,2]
[311170770,1704961848468,-500.0,0.00030684,2]
[311170771,1704961848477,-6233.73,0.00030684,2]
[311170772,1704961848487,-500.0,0.00030684,2]
[311170773,1704961848496,-522.18,0.00030684,2]
[311170774,1704961848506,-372.96767142,0.00030684,2]
[311170775,1704961848515,-6525.09,0.00030684,2]
[311170776,1704961848524,-500.0,0.00030684,2]
[311170777,1704961848534,-500.0,0.00030684,2]
[311170778,1704961848544,-180.12976859,0.00030684,2]
[311170779,1704961848554,-1358.57,0.00030684,2]
[311170780,1704961848563,-2550.85,0.00030684,2]
[311170781,1704961848573,-3580.01,0.00030684,2]
[311170782,1704961848582,-500.0,0.00030684,2]
[311170783,1704961848591,-500.0,0.00030684,2]
[311170784,1704961848600,-500.0,0.00030684,2]
[311170785,1704961848610,-1742.05,0.00030684,2]
[311170786,1704961848619,-500.0,0.00030684,2]
[311170787,1704961848628,-500.0,0.00030684,2]
[311170788,1704961848637,-500.0,0.00030684,2]
[311170789,1704961848647,-631.94,0.00030684,2]
[311170790,1704961848656,-500.0,0.00030684,2]
[311170791,1704961848665,-502.68276975,0.00030684,2]
[311170792,1704961848675,-500.0,0.00030684,2]
[311170793,1704961848684,-500.0,0.00030684,2]
[311170794,1704961848694,-500.0,0.00030684,2]
[311170795,1704961848703,-505.37692655,0.00030684,2]
[311170796,1704961848713,-10447.61,0.00030684,2]
[311170797,1704961848722,-735.69,0.00030684,2]
[311170798,1704961848731,-500.0,0.00030684,2]
[311170799,1704961848740,-500.0,0.00030684,2]
[311170800,1704961848749,-748.45,0.00030684,2]
[311170801,1704961848758,-296.81029934,0.00030684,2]
[311170802,1704961848767,-1077.88,0.00030684,2]
[311170803,1704961848777,-500.0,0.00030684,2]
[311170804,1704961848786,-500.0,0.00030684,2]
[311170805,1704961848795,-1097.4,0.00030684,2]
[311170806,1704961848804,-418.96281996,0.00030684,2]
[311170807,1704961848813,-281.47548314,0.00030684,2]
[311170808,1704961848822,-865.33,0.00030684,2]
[311170809,1704961848831,-504.7252435,0.00030684,2]
[311170810,1704961848840,-500.0,0.00030684,2]
[311170811,1704961848849,-2170.83,0.00030684,2]
[311170812,1704961848858,-500.0,0.00030684,2]
[311170813,1704961848868,-508.3824715,0.00030684,2]
[311170814,1704961848877,-1003.24708738,0.00030684,2]
[311170815,1704961848886,-500.0,0.00030684,2]
[311170816,1704961848895,-235.71792542,0.00030684,2]
[311170817,1704961848904,-166.98600418,0.00030684,2]
[311170818,1704961848913,-793.97,0.00030684,2]
[311170819,1704961848922,-500.0,0.00030684,2]
[311170820,1704961848931,-500.0,0.00030684,2]
[311170821,1704961848940,-500.0,0.00030684,2]
[311170822,1704961848950,-509.19232355,0.00030684,2]
[311170823,1704961848959,-948.2,0.00030684,2]
[311170824,1704961848968,-500.0,0.00030684,2]
[311170825,1704961848977,-1085.34,0.00030684,2]
[311170826,1704961848987,-500.0,0.00030684,2]
[311170827,1704961848996,-500.0,0.00030684,2]
[311170828,1704961849006,-500.0,0.00030684,2]
[311170829,1704961849015,-500.0,0.00030684,2]
[311170830,1704961849025,-500.0,0.00030684,2]
[311170831,1704961849034,-509.69535594,0.00030684,2]
[311170832,1704961849043,-500.0,0.00030684,2]
[311170833,1704961849053,-500.0,0.00030684,2]
[311170834,1704961849062,-2087.46,0.00030684,2]
[311170835,1704961849072,-500.0,0.00030684,2]
[311170836,1704961849082,-500.0,0.00030684,2]
[311170837,1704961849091,-5000.0,0.00030687,7]
[311170838,1704961849101,-5000.0,0.00030691,7]
[311170839,1704961849111,-5000.0,0.00030692,7]
[311170840,1704961849120,-1000.0,0.00030748,7]
[311170841,1704961849129,-1000.0,0.00030748,7]
[311170842,1704961849138,-151.0,0.00030783,2]
[311170843,1704961849148,-227.23031823,0.00030835,2]
[311170844,1704961849158,-664.54777186,0.00030837,2]
[311170845,1704961849167,-410.80407707,0.00030838,2]
[311170846,1704961849176,-310.32919187,0.00030838,2]
[311170847,1704961849186,-351.65078766,0.00030842,2]
[311170848,1704961849195,-179.4190565,0.00030842,2]
[311170849,1704961849205,-336.61887136,0.00030842,2]
[311170850,1704961849215,-1000.0,0.00030842,7]
[311170851,1704961849225,-174.12582881,0.00030847,2]
[311170852,1704961849234,-1000.0,0.00030847,7]
[311170853,1704961849243,-1000.0,0.00030847,7]
[311170854,1704961849253,-1000.0,0.00030847,7]
[311170855,1704961849262,-432.37682617,0.00030847,2]
[311170856,1704961849271,-182.389996,0.00030881,2]
[311170857,1704961849280,-2511.88909796,0.0003089,4]
[311170858,1704961849291,-500.0,0.00030958,2]
[311170859,1704961849300,-500.0,0.00030958,2]
[311170860,1704961849310,-500.0,0.00030958,2]
[311170861,1704961849321,-500.0,0.00030958,2]
[311170862,1704961849330,-500.0,0.00030958,2]
[311170863,1704961849339,-500.0,0.00030958,2]
[311170864,1704961849349,-500.0,0.00030958,2]
[311170865,1704961849359,-500.0,0.00030958,2]
[311170866,1704961849368,-500.0,0.00030958,2]
[311170867,1704961849377,-505.38748439,0.00030958,2]
[311170868,1704961849387,-503.84768849,0.00030958,2]
[311170869,1704961849396,-500.0,0.00030958,2]
[311170870,1704961849406,-500.0,0.00030958,2]
[311170871,1704961849415,-500.0,0.00030958,2]
[311170872,1704961849424,-545.53911227,0.00030958,2]
[311170873,1704961849434,-500.0,0.00030958,2]
[311170874,1704961849443,-500.0,0.00030958,2]
[311170875,1704961849453,-500.0,0.00030958,2]
[311170876,1704961849462,-500.0,0.00030958,2]
[311170877,1704961849471,-500.0,0.00030958,2]
[311170878,1704961849481,-500.0,0.00030958,2]
[311170879,1704961849490,-500.0,0.00030958,2]
[311170880,1704961849500,-500.0,0.00030958,2]
[311170881,1704961849510,-500.0,0.00030958,2]
[311170882,1704961849519,-500.0,0.00030958,2]
[311170883,1704961849529,-1215.22,0.00030958,2]
[311170884,1704961849540,-500.0,0.00030958,2]
[311170885,1704961849615,-500.0,0.00030958,2]
[311170886,1704961849631,-500.0,0.00030958,2]
[311170887,1704961849641,-500.0,0.00030958,2]
[311170888,1704961849650,-500.0,0.00030958,2]
[311170889,1704961849660,-860.89,0.00030958,2]
[311170890,1704961849669,-504.54880296,0.00030958,2]
[311170891,1704961849678,-500.0,0.00030958,2]
[311170892,1704961849688,-502.49238258,0.00030958,2]
[311170893,1704961849698,-500.0,0.00030958,2]
[311170894,1704961849708,-500.0,0.00030958,2]
[311170895,1704961849717,-500.0,0.00030958,2]
[311170896,1704961849728,-500.0,0.00030958,2]
[311170897,1704961849738,-500.0,0.00030958,2]
[311170898,1704961849747,-500.0,0.00030958,2]
[311170899,1704961849756,-500.0,0.00030958,2]
[311170900,1704961849766,-500.0,0.00030958,2]
[311170901,1704961849775,-773.24,0.00030958,2]
[311170902,1704961849785,-500.0,0.00030958,2]
[311170903,1704961849795,-500.0,0.00030958,2]
[311170904,1704961849804,-500.0,0.00030958,2]
[311170905,1704961849813,-520.04023755,0.00030958,2]
[311170906,1704961849823,-521.24,0.00030958,2]
[311170907,1704961849832,-500.0,0.00030958,2]
[311170908,1704961849842,-150.0,0.00030958,2]
[311170909,1704961849852,-500.0,0.00030958,2]
[311170910,1704961849862,-500.0,0.00030958,2]
[311170911,1704961849871,-1874.21,0.00030958,2]
[311170912,1704961849883,-625.13,0.00030958,2]
[311170913,1704961849892,-500.0,0.00030958,2]
[311170914,1704961849901,-621.3914889,0.00030958,2]
[311170915,1704961849910,-500.0,0.00030958,2]
[311170916,1704961849919,-618.92361801,0.00030958,2]
[311170917,1704961849930,-500.0,0.00030958,2]
[311170918,1704961849940,-500.0,0.00030958,2]
[311170919,1704961849950,-547.17160883,0.00030958,2]
[311170920,1704961849961,-150.88778826,0.00030958,2]
[311170921,1704961849970,-500.0,0.00030958,2]
[311170922,1704961849981,-500.0,0.00030958,2]
[311170923,1704961849993,-500.0,0.00030958,2]
[311170924,1704961850005,-590.53,0.00030958,2]
[311170925,1704961850013,-500.0,0.00030958,2]
[311170926,1704961850023,-500.0,0.00030958,2]
[311170927,1704961850033,-500.0,0.00030958,2]
[311170928,1704961850042,-500.0,0.00030958,2]
[311170929,1704961850051,-500.0,0.00030958,2]
[311170930,1704961850061,-500.0,0.00030958,2]
[311170931,1704961850070,-500.0,0.00030958,2]
[311170932,1704961850079,-511.47851661,0.00030958,2]
[311170933,1704961850089,-500.0,0.00030958,2]
[311170934,1704961850099,-500.0,0.00030958,2]
[311170935,1704961850108,-688.78,0.00030958,2]
[311170936,1704961850117,-500.0,0.00030958,2]
[311170937,1704961850126,-500.0,0.00030958,2]
[311170938,1704961850135,-500.0,0.00030958,2]
[311170939,1704961850144,-500.0,0.00030958,2]
[311170940,1704961850154,-280.0,0.00030958,2]
[311170941,1704961850162,-502.55761513,0.00030958,2]
[311170942,1704961850173,-507.5451447,0.00030958,2]
[311170943,1704961850183,-500.0,0.00030958,2]
[311170944,1704961850192,-500.0,0.00030958,2]
[311170945,1704961850202,-823.01,0.00030958,2]
[311170946,1704961850211,-314.75573249,0.00030958,2]
[311170947,1704961850220,-500.0,0.00030958,2]
[311170948,1704961850229,-500.0,0.00030958,2]
[311170949,1704961850238,-500.0,0.00030958,2]
[311170950,1704961850248,-153.08120164,0.00030958,2]
[311170951,1704961850257,-500.0,0.00030958,2]
[311170952,1704961850267,-623.42,0.00030958,2]
[311170953,1704961850277,-500.0,0.00030958,2]
[311170954,1704961850286,-500.0,0.00030958,2]
[311170955,1704961850295,-500.0,0.00030958,2]
[311170956,1704961850304,-527.90013105,0.00030958,2]
[311170957,1704961850314,-500.0,0.00030958,2]
[311170958,1704961850323,-3493.58,0.00030958,2]
[311170959,1704961850332,-500.0,0.00030958,2]
[311170960,1704961850342,-735.22,0.00030958,2]
[311170961,1704961850351,-500.0,0.00030958,2]
[311170962,1704961850361,-500.0,0.00030958,2]
[311170963,1704961850370,-1088.35,0.00030958,2]
[311170964,1704961850379,-500.0,0.00030958,2]
[311170965,1704961850388,-500.0,0.00030958,2]
[311170966,1704961850397,-500.0,0.00030958,2]
[311170967,1704961850407,-500.0,0.00030958,2]
[311170968,1704961850416,-6233.73,0.00030958,2]
[311170969,1704961850426,-500.0,0.00030958,2]
[311170970,1704961850438,-522.18,0.00030958,2]
[311170971,1704961850447,-6525.09,0.00030958,2]
[311170972,1704961850456,-500.0,0.00030958,2]
[311170973,1704961850466,-538.97228615,0.00030958,2]
[311170974,1704961850475,-1358.57,0.00030958,2]
[311170975,1704961850484,-2550.85,0.00030958,2]
[311170976,1704961850494,-3580.01,0.00030958,2]
[311170977,1704961850502,-504.41523224,0.00030958,2]
[311170978,1704961850511,-500.0,0.00030958,2]
[311170979,1704961850520,-500.0,0.00030958,2]
[311170980,1704961850530,-1742.05,0.00030958,2]
[311170981,1704961850539,-497.30825784,0.00030958,2]
[311170982,1704961850548,-500.0,0.00030958,2]
[311170983,1704961850557,-500.0,0.00030958,2]
[311170984,1704961850567,-631.94,0.00030958,2]
[311170985,1704961850576,-500.0,0.00030958,2]
[311170986,1704961850585,-222.02839482,0.00030958,2]
[311170987,1704961850595,-502.86019974,0.00030958,2]
[311170988,1704961850604,-500.0,0.00030958,2]
[311170989,1704961850613,-10447.61,0.00030958,2]
[311170990,1704961850622,-735.69,0.00030958,2]
[311170991,1704961850631,-500.0,0.00030958,2]
[311170992,1704961850642,-500.0,0.00030958,2]
[311170993,1704961850651,-748.45,0.00030958,2]
[311170994,1704961850660,-1077.88,0.00030958,2]
[311170995,1704961850669,-500.0,0.00030958,2]
[311170996,1704961850678,-500.0,0.00030958,2]
[311170997,1704961850688,-1097.4,0.00030958,2]